fUSD/lending_fUSD_20250609
["ID","MTS","AMOUNT","RATE_DAILY","PERIOD"]
[365080969,1749448242645,-1000.0,0.00018751,2]
[365080970,1749448242654,-503.0,0.00018767,2]
[365080971,1749448242664,-150.0,0.000188,2]
[365080972,1749448242673,-807.66,0.000188,2]
[365080973,1749448242683,-33536.5507,0.00018842,2]
[365080974,1749448242694,-504.33059978,0.00018848,2]
[365080975,1749448242703,-1000.0,0.00018848,2]
[365080976,1749448242712,-413.94,0.000189,2]
[365080977,1749448242721,-930.33,0.000189,2]
[365080978,1749448242731,-543.94811618,0.000189,2]
[365080979,1749448242740,-10573.99875415,0.000189,2]
[365080980,1749448242750,-160.01070883,0.000189,2]
[365080981,1749448242759,-204.09554578,0.000189,2]
[365080982,1749448242768,-207.14,0.00018942,2]
[365080983,1749448242779,-542.01765161,0.00018942,2]
[365080984,1749448242789,-460.0,0.00018942,2]
[365080985,1749448242799,-460.0,0.00018942,2]
[365080986,1749448242809,-460.0,0.00018942,2]
[365080988,1749448242820,-480.0,0.00018944,2]
[365080990,1749448242830,-164.030792,0.00018992,2]
[365080992,1749448242839,-227.71696639,0.00018999,2]
[365080993,1749448242848,-11289.11621451,0.00019,2]
[365080995,1749448242859,-18645.0,0.00019,2]
[365080997,1749448242869,-250.0,0.00019,2]
[365080999,1749448242878,-564.94,0.00019001,3]
[365081001,1749448242888,-10573.99875415,0.00019011,2]
[365081003,1749448242897,-636.0,0.00019097,2]
[365081005,1749448242906,-801.0,0.00019097,2]
[365081007,1749448242915,-557.0,0.00019097,2]
[365081009,1749448242925,-926.0,0.00019097,2]
[365081011,1749448242934,-2000.0,0.00019097,2]
[365081013,1749448242943,-1275.0,0.00019097,2]
[365081015,1749448242952,-589.0,0.00019097,2]
[365081017,1749448242961,-1255.0,0.00019097,2]
[365081019,1749448242970,-7063.0,0.00019097,2]
[365081021,1749448242981,-155.0,0.00019097,2]
[365081023,1749448242990,-853.0,0.00019097,2]
[365081025,1749448242999,-4084.0,0.00019097,2]
[365081026,1749448243008,-883.0,0.00019097,2]
[365081029,1749448243017,-150.0,0.00019099,2]
[365081032,1749448243027,-700.0,0.000191,6]
[365081035,1749448243036,-160.01070883,0.000191,2]
[365081038,1749448243045,-296.81542672,0.00019105,2]
[365081040,1749448243054,-218.60144739,0.00019109,2]
[365081042,1749448243064,-150.0,0.00019121,2]
[365081044,1749448243073,-10573.99875415,0.00019122,2]
[365081046,1749448243082,-150.0,0.00019133,2]
[365081048,1749448243091,-150.0,0.00019134,2]
[365081050,1749448243100,-150.0,0.00019141,2]
[365081052,1749448243109,-150.0,0.00019164,2]
[365081054,1749448243118,-150.0,0.00019175,2]
[365081056,1749448243127,-150.0,0.00019175,2]
[365081058,1749448243137,-500.0,0.00019178,2]
[365081060,1749448243146,-500.0,0.00019178,2]
[365081062,1749448243155,-539.75737841,0.00019178,2]
[365081064,1749448243164,-500.0,0.00019178,2]
[365081066,1749448243174,-700.0,0.00019178,2]
[365081068,1749448243183,-151.0,0.00019178,2]
[365081070,1749448243193,-152.72,0.00019178,2]
[365081071,1749448243201,-150.0,0.00019185,2]
[365081073,1749448243211,-150.0,0.00019186,2]
[365081075,1749448243220,-150.0,0.00019189,2]
[365081077,1749448243229,-1400.0,0.000192,7]
[365081079,1749448243238,-500.0,0.00019224,2]
[365081081,1749448243247,-500.0,0.00019225,2]
[365081083,1749448243256,-150.0,0.00019231,2]
[365081085,1749448243265,-150.0,0.00019233,2]
[365081086,1749448243274,-10573.99875415,0.00019233,2]
[365081087,1749448243283,-150.0,0.00019245,2]
[365081088,1749448243291,-277.38,0.00019255,2]
[365081089,1749448243301,-177.71329541,0.000193,2]
[365081090,1749448243311,-2100.0,0.000193,7]
[365081091,1749448243322,-160.01070883,0.000193,2]
[365081092,1749448243331,-174.25513705,0.000193,2]
[365081093,1749448243342,-173.11246543,0.000193,2]
[365081094,1749448243352,-1200.16630342,0.000193,2]
[365081095,1749448243361,-150.0,0.0001931,2]
[365081096,1749448243372,-150.0,0.0001931,2]
[365081097,1749448243382,-150.0,0.00019324,2]
[365081098,1749448243392,-150.0,0.00019331,2]
[365081099,1749448243401,-350.23503242,0.00019333,2]
[365081100,1749448243412,-8290.02379229,0.00019344,2]
[365081101,1749448243434,-2283.97496186,0.00019344,2]
[365081102,1749448243443,-1200.16630334,0.00019367,2]
[365081103,1749448243454,-500.0,0.00019373,2]
[365081104,1749448243463,-250.0,0.00019383,2]
[365081105,1749448243474,-250.0,0.00019383,2]
[365081106,1749448243484,-250.0,0.00019383,2]
[365081107,1749448243494,-1500.0,0.00019396,2]
[365081108,1749448243505,-22783.47362851,0.000194,2]
[365081109,1749448243514,-1609.01945317,0.000194,2]
[365081158,1749448278737,500.0,0.00013972,2]
[365081159,1749448280339,500.0,0.00015342,2]
[365081160,1749448497522,5000.0,0.00017052,2]
[365081161,1749448507430,5000.0,0.00017052,2]
[365081162,1749448514703,5000.0,0.00017052,2]
[365081163,1749448521502,5000.0,0.00017052,2]
[365081164,1749448528087,5000.0,0.00017052,2]
[365081165,1749448536092,5000.0,0.00017052,2]
[365081166,1749448625166,5000.0,0.00017052,2]
[365081167,1749448634752,5000.0,0.00017052,2]
[365081168,1749448641616,5000.0,0.00017052,2]
[365081169,1749448651247,5000.0,0.00017052,2]
[365081170,1749448658244,5000.0,0.00017052,2]
[365081171,1749448668418,1329.0,0.00015,60]
[365081172,1749448679943,5000.0,0.00017052,2]
[365081173,1749448687239,799.0,0.00017052,2]
[365081174,1749449136735,202.09,0.00013699,2]
[365081176,1749449207593,939.19,0.00015986,2]
[365081177,1749449256165,-500.40785682,0.000177,2]
[365081178,1749449256190,-373.58,0.00017722,2]
[365081179,1749449256217,-1200.0,0.00017817,2]
[365081180,1749449256241,-1000.0,0.00017818,2]
[365081181,1749449256264,-241.83,0.00017835,2]
[365081182,1749449256287,-300.0,0.00017966,2]
[365081183,1749449256310,-300.0,0.00017966,2]
[365081184,1749449256333,-300.0,0.00017967,2]
[365081185,1749449256355,-2608.99,0.00017968,2]
[365081186,1749449256387,-300.24,0.00018082,2]
[365081187,1749449256411,-300.28,0.00018082,2]
[365081188,1749449256435,-305.19,0.00018082,2]
[365081189,1749449256460,-305.89,0.00018082,2]
[365081190,1749449256485,-301.04,0.00018082,2]
[365081191,1749449256509,-304.45,0.00018082,2]
[365081192,1749449256532,-193.33,0.00018082,2]
[365081193,1749449256555,-500.0,0.00018082,2]
[365081194,1749449256578,-250.0,0.00018084,2]
[365081195,1749449256602,-300.0,0.00018084,2]
[365081196,1749449256625,-4537.47,0.00018244,2]
[365081197,1749449256649,-151.0,0.00018246,2]
[365081198,1749449256673,-207.4,0.00018246,2]
[365081199,1749449256696,-939.19,0.0001825,2]
[365081200,1749449256720,-1078.0,0.00018528,2]
[365081201,1749449256743,-165.66,0.00018541,2]
[365081202,1749449256767,-208.0,0.00018653,2]
[365081203,1749449256804,-205.0,0.00018653,2]
[365081204,1749449256833,-150.0,0.000188,2]
[365081205,1749449256871,-209.03412786,0.000189,2]
[365081206,1749449256899,-1000.0,0.00018997,2]
[365081207,1749449256927,-400.0,0.000191,6]
[365081208,1749449256952,-155.0,0.00019152,2]
[365081209,1749449256979,-4084.0,0.00019152,2]
[365081210,1749449257007,-7063.0,0.00019152,2]
[365081211,1749449257036,-1796.94474216,0.00019152,2]
[365081212,1749449291163,500.0,0.00016164,2]
[365081213,1749449291586,534.93952995,0.00016164,2]
[365081214,1749449296866,500.0,0.00015068,2]
[365081218,1749449357508,-833.29909032,0.00017611,2]
[365081219,1749449357536,-6221.662088,0.00017611,2]
[365081220,1749449357560,-500.0,0.00017808,2]
[365081221,1749449380979,-833.29909032,0.00017611,2]
[365081222,1749449381007,-1029.81917452,0.00018769,2]
[365081223,1749449381035,-1122.18847072,0.00018769,2]
[365081224,1749449381061,-957.4535235,0.00018769,2]
[365081225,1749449381087,-25.73503753,0.00018769,2]
[365081226,1749449401074,-275.11496247,0.00018769,2]
[365081227,1749449401097,-150.0,0.000189,2]
[365081228,1749449401126,-209.03412785,0.000189,2]
[365081229,1749449401150,-500.0,0.00018904,2]
[365081231,1749449431822,-301.89,0.00018794,2]
[365081232,1749449431831,-302.26,0.00018821,2]
[365081233,1749449431841,-747.19433458,0.00018904,2]
[365081234,1749449431852,-86.10475574,0.00018904,2]
[365081235,1749449431862,-150.0,0.00019056,20]
[365081236,1749449431871,-300.0,0.00019151,2]
[365081237,1749449431881,-423.5919877,0.00019151,2]
[365081238,1749449431900,-776.4080123,0.00019151,2]
[365081239,1749449431909,-174.11175791,0.00019152,2]
[365081240,1749449431921,-28.94349993,0.00019152,2]
[365081241,1749449431930,-926.0,0.00019152,2]
[365081242,1749449431940,-1274.0,0.00019152,2]
[365081243,1749449431949,-589.0,0.00019152,2]
[365081244,1749449431959,-140.77698319,0.00019152,2]
[365081245,1749449431971,-1114.22301681,0.00019152,2]
[365081246,1749449431981,-853.0,0.00019174,2]
[365081247,1749449431990,-424.50161579,0.00019174,2]
[365081248,1749449432002,-2864.97238421,0.00019174,2]
[365081249,1749449432012,-151.0,0.00019178,2]
[365081250,1749449432022,-152.72,0.00019178,2]
[365081251,1749449432031,-900.0,0.000192,7]
[365081252,1749449432040,-500.0,0.00019245,2]
[365081254,1749449432050,-266.42933039,0.00019299,2]
[365081256,1749449432060,-226.63970871,0.00019299,2]
[365081258,1749449432069,-348.5296278,0.00019299,2]
[365081259,1749449432079,-75921.3061,0.000193,2]
[365081260,1749449432088,-2651.83511125,0.000193,2]
[365081261,1749449432100,-2787.6346313,0.000193,2]
[365081263,1749449432109,-1400.0,0.000193,7]
[365081265,1749449432119,-160.01070883,0.000193,2]
[365081267,1749449432128,-960.13304269,0.000193,2]
[365081269,1749449432138,-174.25513705,0.000193,2]
[365081271,1749449432147,-263.05858216,0.00019334,2]
[365081273,1749449432160,-263.94501044,0.00019334,2]
[365081276,1749449432169,-5439.46974247,0.00019367,2]
[365081278,1749449432178,-960.13304267,0.00019367,2]
[365081279,1749449432188,-500.0,0.00019373,2]
[365081280,1749449432197,-159.40187647,0.00019399,2]
[365081281,1749449432206,-5644.55810726,0.000194,2]
[365081282,1749449432215,-1923.51222069,0.000194,2]
[365081283,1749449432230,-1712.9407238,0.000194,2]
[365081284,1749449432242,-827.87084126,0.000194,2]
[365081285,1749449432253,-1369.93063455,0.000194,2]
[365081286,1749449432266,-605.03317074,0.000194,2]
[365081295,1749449437487,-155.39387125,0.00018809,20]
[365081296,1749449437496,-464.53167875,0.00018875,2]
[365081376,1749449442738,-304.85,0.00018821,2]
[365081377,1749449442748,-37.06832125,0.00018875,2]
[365081378,1749449442758,-266.20167875,0.00018875,2]
[365081406,1749449513528,500.0,0.00016164,2]
[365081407,1749449525084,500.0,0.00016164,2]
[365081408,1749449677622,180.0,0.00015582,2]
[365081413,1749449962374,173.26,0.00014378,2]
[365081415,1749450024610,200.30626315,0.00014306,2]
[365081417,1749450104240,332.96,0.00013699,2]
[365081419,1749450148202,183.05,0.00016712,2]
[365081421,1749450207623,198.84839926,0.00017052,2]
[365081428,1749450336551,12761.53778895,9e-05,2]
[365081429,1749450404819,981.81,0.00015942,2]
[365081431,1749450432031,5892.00789525,0.00015,2]
[365081432,1749450435423,14288.96833569,0.00015,2]
[365081433,1749450441690,3128.20615054,0.0001305,2]
[365081434,1749450473430,4299.42665438,0.00013,2]
[365081435,1749450478110,3415.52974194,0.00015,2]
[365081437,1749450494564,9713.28962645,0.0001439,2]
[365081438,1749450495977,200.0,0.0001634,2]
[365081439,1749450497687,1000.0,0.000135,2]
[365081440,1749450497818,298.71656201,0.000125,2]
[365081441,1749450513799,217.64596375,0.0001,2]
[365081442,1749450517254,2658.68738115,0.0001,2]
[365081443,1749450524037,348.20996161,0.00010136,2]
[365081444,1749450524421,30795.90523922,0.00013368,2]
[365081445,1749450527245,159.9466914,0.00017051,2]
[365081460,1749450579160,180.0,0.00015582,2]
[365081473,1749450631794,-165.66,0.00017871,2]
[365081475,1749450631803,-1713.53525318,0.00017936,2]
[365081476,1749450631814,-814.76738347,0.00017936,2]
[365081477,1749450631827,-3475.91736335,0.00017936,2]
[365081478,1749450631838,-250.0,0.00017942,2]
[365081479,1749450631847,-683.86,0.00017948,2]
[365081480,1749450631857,-150.0,0.00017953,2]
[365081481,1749450631866,-51.16864533,0.00017978,2]
[365081482,1749450631881,-198.83135467,0.00017978,2]
[365081483,1749450631890,-433.79121143,0.00017985,2]
[365081484,1749450631917,-283.0446094,0.00017985,2]
[365081485,1749450631928,-483.16417917,0.00017985,2]
[365081486,1749450631937,-1000.0,0.00017986,2]
[365081487,1749450631947,-238.70359267,0.00017986,2]
[365081488,1749450631956,-300.0,0.00017988,2]
[365081489,1749450631965,-39.5269744,0.00017989,2]
[365081490,1749450631977,-1342.01906685,0.00017989,2]
[365081491,1749450631988,-407.114424,0.00017989,2]
[365081492,1749450632000,-459.37953475,0.00017989,2]
[365081493,1749450632010,-787.73838653,0.00018,2]
[365081494,1749450632021,-1214.22964098,0.00018,2]
[365081495,1749450632030,-363.35,0.00018127,2]
[365081496,1749450632039,-193.33,0.00018127,2]
[365081497,1749450632050,-596.24368144,0.00018206,2]
[365081498,1749450632061,-385.56631856,0.00018206,2]
[365081499,1749450632071,-207.4,0.00018246,2]
[365081500,1749450632080,-207.0,0.00018412,2]
[365081501,1749450632090,-165.26,0.0001853,2]
[365081502,1749450632102,-300.0,0.00018732,2]
[365081503,1749450632112,-151.0,0.0001877,2]
[365081504,1749450632121,-444.31744924,0.0001877,2]
[365081505,1749450632133,-555.68255076,0.0001877,2]
[365081506,1749450632143,-151.0,0.0001877,2]
[365081507,1749450632152,-151.0,0.0001877,2]
[365081508,1749450632163,-151.0,0.0001877,2]
[365081509,1749450632173,-151.0,0.0001877,2]
[365081510,1749450632186,-151.0,0.0001877,2]
[365081511,1749450632201,-245.0,0.0001877,2]
[365081512,1749450632215,-500.0,0.0001877,2]
[365081513,1749450632229,-500.0,0.0001877,2]
[365081514,1749450632240,-381.69595466,0.0001877,2]
[365081515,1749450632255,-118.30404534,0.0001877,2]
[365081516,1749450632268,-476.65144714,0.0001877,2]
[365081517,1749450632284,-23.34855286,0.0001877,2]
[365081518,1749450632296,-491.94135963,0.0001877,2]
[365081520,1749450632324,-8.05864037,0.0001877,2]
[365081522,1749450632335,-574.58844348,0.0001877,2]
[365081524,1749450632346,-7.35292615,0.000189,2]
[365081526,1749450632360,-142.64707385,0.000189,2]
[365081527,1749450632374,-530.66559731,0.00018904,2]
[365081528,1749450632386,-500.0,0.00018904,2]
[365081530,1749450632399,-250.0,0.00019,2]
[365081532,1749450632412,-907.11,0.00019,2]
[365081534,1749450632426,-300.0,0.000191,6]
[365081537,1749450632439,-151.0,0.00019178,2]
[365081539,1749450632454,-170.13,0.00019178,2]
[365081541,1749450632465,-123.44732884,0.00019199,2]
[365081543,1749450632482,-1673.49767116,0.00019199,2]
[365081545,1749450632494,-1159.0,0.00019199,2]
[365081547,1749450632507,-2398.18544758,0.00019199,2]
[365081551,1749450632531,-934.51245366,0.00019199,2]
[365081553,1749450632547,-434.94,0.00019199,2]
[365081556,1749450632564,-316.36209876,0.00019199,2]
[365081558,1749450632577,-155.0,0.00019199,2]
[365081561,1749450632588,-559.6782021,0.000192,7]
[365081563,1749450632605,-140.3217979,0.000192,7]
[365081565,1749450632615,-500.0,0.00019245,2]
[365081567,1749450632625,-277.38,0.00019259,2]
[365081568,1749450632639,-29450.48590815,0.000193,2]
[365081569,1749450632664,-407.0,0.000193,2]
[365081570,1749450637998,-209.03412786,0.000189,2]
[365081571,1749450638009,-250.111,0.00019199,2]
[365081572,1749450638019,-8236.18646638,0.000193,2]
[365081573,1749450638031,-424.538785,0.000193,2]
[365081574,1749450638051,-468.40396298,0.000193,2]
[365081575,1749450638063,-374.55,0.000193,2]
[365081576,1749450638103,-8869.52355987,0.000193,2]
[365081577,1749450638115,-10460.71394464,0.000193,2]
[365081578,1749450638130,-1500.0,0.000193,2]
[365081579,1749450638141,-539.269297,0.000193,2]
[365081580,1749450638151,-876.49937008,0.000193,2]
[365081581,1749450638175,-9252.0778059,0.000193,2]
[365081582,1749450638185,-1000.0,0.000193,2]
[365081583,1749450638194,-233.70252149,0.000193,2]
[365081584,1749450638204,-1100.0,0.000193,7]
[365081585,1749450638213,-160.01070883,0.000193,2]
[365081586,1749450638223,-507.81477587,0.00019373,2]
[365081587,1749450638232,-4612.26325286,0.000194,2]
[365081588,1749450638243,-380.94205241,0.000194,2]
[365081628,1749450640182,-250.11086751,0.000194,2]
[365081629,1749450640193,-781.53850669,0.000194,2]
[365081672,1749450688782,500.0,0.00016164,2]
[365081683,1749450930588,173.26,0.0001455,2]
[365081704,1749451398366,883.62,0.00016063,2]
[365081708,1749451477614,193.19985582,0.00015582,2]
[365081709,1749451480657,316.31,0.00013699,2]
[365081729,1749451758516,6010.05174975,0.00017,2]
[365081733,1749451811655,207.0,0.00017011,2]
[365081734,1749451832023,-341.93,0.00018031,2]
[365081735,1749451832033,-207.4,0.00018278,2]
[365081736,1749451832042,-151.0,0.00018278,2]
[365081737,1749451832051,-304.88,0.00018288,2]
[365081738,1749451832060,-300.0,0.00018288,2]
[365081739,1749451832069,-1200.0,0.00018288,2]
[365081740,1749451832078,-302.99,0.00018288,2]
[365081741,1749451832087,-1000.0,0.00018289,2]
[365081742,1749451832097,-186.88,0.00018289,2]
[365081743,1749451832106,-304.92,0.00018289,2]
[365081744,1749451832115,-302.36,0.00018289,2]
[365081745,1749451832125,-305.13,0.00018289,2]
[365081746,1749451832134,-300.92,0.00018289,2]
[365081747,1749451832143,-304.34,0.00018289,2]
[365081748,1749451832153,-883.62,0.00018327,2]
[365081749,1749451832162,-209.03412785,0.000189,2]
[365081750,1749451832172,-152.0,0.00018901,3]
[365081751,1749451832182,-500.0,0.00018904,2]
[365081752,1749451832191,-150.0,0.00019,2]
[365081753,1749451832201,-250.0,0.00019,2]
[365081754,1749451832210,-200.0,0.000191,6]
[365081755,1749451832220,-151.0,0.00019178,2]
[365081756,1749451832229,-170.13,0.00019178,2]
[365081757,1749451832239,-500.0,0.000192,7]
[365081758,1749451832248,-8093.38,0.000192,2]
[365081759,1749451832258,-500.0,0.00019245,2]
[365081760,1749451832267,-1159.0,0.00019255,2]
[365081761,1749451832277,-7063.0,0.00019255,2]
[365081762,1749451832286,-155.0,0.00019255,2]
[365081763,1749451832296,-4084.0,0.00019255,2]
[365081764,1749451832306,-1000.0,0.000193,2]
[365081765,1749451832315,-800.0,0.000193,7]
[365081766,1749451832324,-4351.57579403,0.000193,2]
[365081767,1749451832333,-4351.57579397,0.00019367,2]
[365081768,1749451832343,-152.88305,0.00019384,2]
[365081769,1749451832352,-533.95,0.0001939,2]
[365081770,1749451832361,-8469.54545784,0.000194,2]
[365081771,1749451832370,-122913.14409594,0.000194,2]
[365081772,1749451832382,-2848.94177969,0.000194,2]
[365081773,1749451832393,-972.30378484,0.000194,2]
[365081774,1749451832407,-7140.84730265,0.000194,2]
[365081775,1749451832418,-1757.81818939,0.000194,2]
[365081776,1749451832438,-7036.5633425,0.000194,2]
[365081777,1749451832451,-715.8870548,0.000194,2]
[365081778,1749451832462,-2431.20714157,0.000194,2]
[365081779,1749451832474,-493.39158432,0.000194,2]
[365081780,1749451832486,-277.8417361,0.000194,2]
[365082345,1749452011981,593.6961936,0.00016164,2]
[365082348,1749452082415,150.0,0.00017052,2]
[365082361,1749452406052,222.18437322,0.00017,2]
[365082362,1749452435042,795.25,0.00016487,2]
[365082372,1749452675007,15457.44103808,0.00017,2]
[365082373,1749452679368,300.49,0.00013699,2]
[365082381,1749452891557,207.0,0.00016877,2]
[365082396,1749453032080,-276.65889505,0.00017999,2]
[365082398,1749453032092,-23.34110495,0.00017999,2]
[365082399,1749453032102,-554.74679265,0.00017999,2]
[365082400,1749453032196,-645.25320735,0.00017999,2]
[365082401,1749453032206,-250.0,0.00018,2]
[365082402,1749453032215,-1846.09813704,0.00018,2]
[365082403,1749453032305,-5944.89825778,0.00018,2]
[365082404,1749453032317,-537.37310305,0.00018,2]
[365082405,1749453032344,-591.16561341,0.00018,2]
[365082406,1749453032398,-1114.04231188,0.00018,2]
[365082407,1749453032411,-113.27146658,0.00018,2]
[365082408,1749453032421,-156.03097668,0.00018,2]
[365082439,1749453038214,-575.44595638,0.00018,2]
[365082440,1749453038227,-9827.42884134,0.00018,2]
[365082441,1749453038316,-4026.3938299,0.00018,2]
[365082442,1749453038329,-2615.92995068,0.00018,2]
[365082443,1749453038345,-2239.1,0.00018,2]
[365082444,1749453038357,-2132.57087603,0.00018,2]
[365082445,1749453038371,-1631.0,0.00018,2]
[365082446,1749453038479,-1070.70831661,0.00018,2]
[365082454,1749453040177,-151.0,0.00018,2]
[365082459,1749453043323,-685.4787289,0.00018,2]
[365082460,1749453043337,-5033.53252348,0.00018,2]
[365082461,1749453043348,-641.99839004,0.00018325,2]
[365082462,1749453043358,-175.66899229,0.00018325,2]
[365082463,1749453043367,-36462.52512729,0.00018326,2]
[365082464,1749453043444,-228.25558614,0.00018326,2]
[365082497,1749453169988,500.0,0.00016164,2]
[365082503,1749453314458,10000.0,0.00017052,2]
[365082504,1749453323153,10000.0,0.00017052,2]
[365082505,1749453330981,10000.0,0.00017052,2]
[365082507,1749453339939,10000.0,0.00017052,2]
[365082508,1749453348762,10000.0,0.00016,10]
[365082509,1749453357646,10000.0,0.00016,10]
[365082510,1749453367518,10000.0,0.00017052,2]
[365082511,1749453399820,10000.0,0.00017052,2]
[365082512,1749453412950,2308.55,0.00016,10]
[365082514,1749453553992,900.65,0.0001574,2]
[365082516,1749453658310,300.8,0.00013699,2]
[365082521,1749453837811,-228.25558614,0.00017446,2]
[365082522,1749453851096,-151.0,0.00017445,2]
[365082524,1749453972081,207.0,0.00016958,2]
[365082543,1749454208724,-228.25558614,0.00017214,2]
[365082544,1749454224556,-151.0,0.00017214,2]
[365082549,1749454232639,-0.74441386,0.00017214,2]
[365082550,1749454232650,-262.60558614,0.00017269,2]
[365082551,1749454232661,-784.7064068,0.00017269,2]
[365082552,1749454232672,-152.68800706,0.00017269,2]
[365082553,1749454232682,-293.75558614,0.00017269,2]
[365082554,1749454232706,-6.24441386,0.00017269,2]
[365082555,1749454232715,-916.94843233,0.0001727,2]
[365082556,1749454232780,-1168.28402153,0.0001727,2]
[365082839,1749454238956,-12429.50325961,0.0001727,2]
[365082840,1749454239120,-8804.44332242,0.0001727,2]
[365082841,1749454239216,-408.85176986,0.0001727,2]
[365082935,1749454240604,-982.94733476,0.0001727,2]
[365082936,1749454241153,-2540.05405483,0.0001727,2]
[365082952,1749454243696,-5282.5,0.0001727,2]
[365083041,1749454246699,-8173.82780466,0.0001727,2]
[365083042,1749454246709,-1228.74,0.00017298,2]
[365083043,1749454246718,-250.0,0.00017324,2]
[365083044,1749454246728,-22614.44441386,0.00017446,2]
[365083045,1749454246737,-500.0,0.00017699,2]
[365083046,1749454246746,-500.0,0.00017699,2]
[365083047,1749454246755,-500.0,0.00017699,2]
[365083048,1749454246766,-247.85212971,0.00017699,2]
[365083049,1749454246777,-6937.2,0.000177,2]
[365083050,1749454246790,-2810.01,0.00017723,2]
[365083051,1749454246802,-1000.0,0.00017723,2]
[365083052,1749454246814,-3380.64328098,0.00017952,2]
[365083053,1749454312762,1114.0,0.00016,6]
[365083060,1749454636772,285.76,0.00013699,2]
[365083064,1749454811524,162.4256212,0.00015,2]
[365083066,1749454910287,855.61,0.0001542,2]
[365083074,1749455158134,23049.32258978,0.00017,2]
[365083077,1749455287029,1860.611723,0.00017047,2]
[365083086,1749455411603,207.0,0.00016268,2]
[365083089,1749455431713,-420.54461945,0.00017133,2]
[365083090,1749455431726,-404.35360807,0.00017133,2]
[365083091,1749455431747,-931.73177248,0.00017133,2]
[365083092,1749455431757,-1000.0,0.00017248,2]
[365083093,1749455431767,-855.61,0.00017683,2]
[365083094,1749455431777,-300.0,0.00017699,2]
[365083095,1749455431786,-1200.0,0.00017699,2]
[365083096,1749455431795,-2257.00026927,0.000177,2]
[365083097,1749455431806,-1447.47854846,0.000177,2]
[365083098,1749455431863,-2241.70118227,0.000177,2]
[365083099,1749455431873,-3433.1499265,0.0001771,2]
[365083100,1749455431883,-228.26,0.00017753,2]
[365083101,1749455431892,-196.88889113,0.00017757,2]
[365083103,1749455431903,-186.36815119,0.00017757,2]
[365083105,1749455431912,-200.0,0.00017785,2]
[365083107,1749455431921,-170.96,0.00017818,2]
[365083109,1749455431931,-503.0,0.0001789,2]
[365083111,1749455431940,-214.06482565,0.000179,2]
[365083113,1749455431949,-150.41,0.00017946,2]
[365083114,1749455431959,-467.7,0.0001799,2]
[365083116,1749455431968,-467.7,0.0001799,2]
[365083118,1749455431977,-467.7,0.0001799,2]
[365083120,1749455431986,-3052.09702316,0.00017996,2]
[365083123,1749455431997,-2409.17297684,0.00017996,2]
[365083124,1749455432006,-416.74777945,0.00017999,2]
[365083126,1749455432015,-724.07924871,0.00018,2]
[365083128,1749455432026,-1300.0,0.00018,2]
[365083130,1749455432038,-10650.0,0.00018,2]
[365083138,1749455437655,-1056.7,0.00018,2]
[365083139,1749455437953,-1122.74496131,0.00018,2]
[365083294,1749455439880,-919.39818052,0.00018,2]
[365083299,1749455439918,-13429.61932777,0.00018,2]
[365083301,1749455439931,-1403.07622281,0.00018,2]
[365083314,1749455440044,-2600.00000001,0.00018,2]
[365083323,1749455440165,-11260.8477478,0.00018,2]
[365083560,1749455442665,-321.48268405,0.00018,2]
[365083616,1749455445624,-770.59625508,0.00018,2]
[365083617,1749455445881,-4626.11588655,0.00018,2]